[Event "Titled Tuesday Blitz June 20 Early 2023"]
[White "Leenhouts, Koen"]
[Black "Porat, Tori"]
[WhiteFideId "1008439"]
[BlackFideId "30982626"]
[WhiteElo "2409"]
[BlackElo "1752"]
[Result "1-0"]
[Round "1"]
[TimeControl "180+2"]
[Date "2023.06.20"]
[WhiteClock "0:00:21"]
[BlackClock "0:00:00"]
[Board "235"]

1. e4 {[%clk 0:02:56]}  c5 {[%clk 0:02:59]} 2. Nf3 {[%clk 0:02:55]}  Nc6 {[%clk 0:02:59]} 3. d4 {[%clk 0:02:53]}  cxd4 {[%clk 0:02:59]} 4. Nxd4 {[%clk 0:02:54]}  e5 {[%clk 0:03:00]} 5. Nb5 {[%clk 0:02:53]}  d6 {[%clk 0:03:00]} 6. N1c3 {[%clk 0:02:51]}  a6 {[%clk 0:03:00]} 7. Na3 {[%clk 0:02:50]}  b5 {[%clk 0:03:00]} 8. Nd5 {[%clk 0:02:50]}  Nf6 {[%clk 0:03:00]} 9. Bg5 {[%clk 0:02:42]}  Be7 {[%clk 0:03:00]} 10. Bxf6 {[%clk 0:02:39]}  Bxf6 {[%clk 0:02:59]} 11. c4 {[%clk 0:02:29]}  b4 {[%clk 0:02:58]} 12. Nc2 {[%clk 0:02:29]}  a5 {[%clk 0:02:58]} 13. Be2 {[%clk 0:02:27]}  Bg5 {[%clk 0:02:54]} 14. O-O {[%clk 0:02:26]}  O-O {[%clk 0:02:53]} 15. Bg4 {[%clk 0:02:25]}  Ne7 {[%clk 0:02:36]} 16. Bxc8 {[%clk 0:02:15]}  Rxc8 {[%clk 0:02:33]} 17. b3 {[%clk 0:02:09]}  Nxd5 {[%clk 0:02:31]} 18. Qxd5 {[%clk 0:02:08]}  Qb6 {[%clk 0:02:26]} 19. Rad1 {[%clk 0:02:06]}  Rfd8 {[%clk 0:02:20]} 20. g3 {[%clk 0:02:06]}  Rc5 {[%clk 0:02:08]} 21. Qd3 {[%clk 0:02:04]}  Rcc8 {[%clk 0:02:03]} 22. Kg2 {[%clk 0:02:05]}  Qc7 {[%clk 0:01:29]} 23. f4 {[%clk 0:02:02]}  Bf6 {[%clk 0:01:26]} 24. Ne3 {[%clk 0:02:00]}  exf4 {[%clk 0:01:19]} 25. Nd5 {[%clk 0:01:59]}  Qd7 {[%clk 0:01:15]} 26. Nxf6+ {[%clk 0:01:57]}  gxf6 {[%clk 0:01:15]} 27. Rxf4 {[%clk 0:01:58]}  Qe6 {[%clk 0:01:11]} 28. Rdf1 {[%clk 0:01:54]}  Re8 {[%clk 0:01:07]} 29. Qd4 {[%clk 0:01:39]}  Rc5 {[%clk 0:00:52]} 30. Rxf6 {[%clk 0:01:29]}  Qxe4+ {[%clk 0:00:49]} 31. Qxe4 {[%clk 0:01:30]}  Rxe4 {[%clk 0:00:49]} 32. Rxd6 {[%clk 0:01:31]}  Re2+ {[%clk 0:00:49]} 33. Rf2 {[%clk 0:01:31]}  Rce5 {[%clk 0:00:46]} 34. Rd8+ {[%clk 0:01:26]}  Kg7 {[%clk 0:00:46]} 35. Rd7 {[%clk 0:01:27]}  Rxf2+ {[%clk 0:00:42]} 36. Kxf2 {[%clk 0:01:28]}  Rf5+ {[%clk 0:00:42]} 37. Ke3 {[%clk 0:01:23]}  Re5+ {[%clk 0:00:36]} 38. Kd3 {[%clk 0:01:20]}  Rh5 {[%clk 0:00:35]} 39. h4 {[%clk 0:01:18]}  Rf5 {[%clk 0:00:34]} 40. Ke3 {[%clk 0:01:12]}  Re5+ {[%clk 0:00:33]} 41. Kf3 {[%clk 0:01:11]}  Rf5+ {[%clk 0:00:34]} 42. Kg2 {[%clk 0:01:00]}  Re5 {[%clk 0:00:32]} 43. Rd2 {[%clk 0:01:01]}  h6 {[%clk 0:00:27]} 44. Rc2 {[%clk 0:00:59]}  Rc5 {[%clk 0:00:26]} 45. Kf3 {[%clk 0:00:59]}  Rf5+ {[%clk 0:00:26]} 46. Ke4 {[%clk 0:00:59]}  Rc5 {[%clk 0:00:26]} 47. Kd4 {[%clk 0:00:59]}  Rc8 {[%clk 0:00:25]} 48. c5 {[%clk 0:00:59]}  Kf8 {[%clk 0:00:25]} 49. c6 {[%clk 0:00:58]}  Ke7 {[%clk 0:00:26]} 50. Kc5 {[%clk 0:00:59]}  Rc7 {[%clk 0:00:22]} 51. Re2+ {[%clk 0:00:54]}  Kd8 {[%clk 0:00:21]} 52. Kd6 {[%clk 0:00:55]}  Ra7 {[%clk 0:00:18]} 53. g4 {[%clk 0:00:51]}  Ra6 {[%clk 0:00:18]} 54. g5 {[%clk 0:00:41]}  hxg5 {[%clk 0:00:17]} 55. h5 {[%clk 0:00:42]}  f6 {[%clk 0:00:11]} 56. h6 {[%clk 0:00:40]}  Ra7 {[%clk 0:00:11]} 57. Rh2 {[%clk 0:00:25]}  Rh7 {[%clk 0:00:10]} 58. Ke6 {[%clk 0:00:23]}  Kc7 {[%clk 0:00:09]} 59. Kxf6 {[%clk 0:00:23]}  g4 {[%clk 0:00:09]} 60. Kg6 {[%clk 0:00:23]}  g3 {[%clk 0:00:09]} 61. Rh3 {[%clk 0:00:23]}  g2 {[%clk 0:00:04]} 62. Rg3 {[%clk 0:00:22]}  Rh8 {[%clk 0:00:03]} 63. h7 {[%clk 0:00:22]}  Kxc6 {[%clk 0:00:02]} 64. Rxg2 {[%clk 0:00:21]}  Rxh7 {[%clk 0:00:00]} 65. Kxh7 {[%clk 0:00:21]} 1-0


[Site "https://www.chess.com"]

[Event "Titled Tuesday Blitz June 20 Early 2023"]
[White "Sanchez, Robert"]
[Black "Yelisieiev, Yevhenii"]
[WhiteFideId "2034360"]
[BlackFideId "14139642"]
[WhiteElo "1988"]
[BlackElo "2403"]
[Result "0-1"]
[Round "1"]
[TimeControl "180+2"]
[Date "2023.06.20"]
[WhiteClock "0:00:04"]
[BlackClock "0:00:06"]
[Board "236"]

1. e4 {[%clk 0:02:59]}  d6 {[%clk 0:02:59]} 2. d4 {[%clk 0:02:59]}  Nf6 {[%clk 0:02:58]} 3. Nc3 {[%clk 0:02:58]}  e5 {[%clk 0:02:56]} 4. Nf3 {[%clk 0:02:59]}  Nbd7 {[%clk 0:02:56]} 5. Bc4 {[%clk 0:02:59]}  Be7 {[%clk 0:02:56]} 6. O-O {[%clk 0:02:56]}  O-O {[%clk 0:02:56]} 7. a4 {[%clk 0:02:56]}  c6 {[%clk 0:02:52]} 8. h3 {[%clk 0:02:55]}  a5 {[%clk 0:02:52]} 9. Re1 {[%clk 0:02:55]}  Nb6 {[%clk 0:02:51]} 10. Bb3 {[%clk 0:02:54]}  Nfd7 {[%clk 0:02:51]} 11. Be3 {[%clk 0:02:48]}  exd4 {[%clk 0:02:51]} 12. Nxd4 {[%clk 0:02:48]}  Nc5 {[%clk 0:02:52]} 13. Nf5 {[%clk 0:02:41]}  Bxf5 {[%clk 0:02:49]} 14. exf5 {[%clk 0:02:37]}  Nxb3 {[%clk 0:02:46]} 15. cxb3 {[%clk 0:02:38]}  d5 {[%clk 0:02:38]} 16. Bxb6 {[%clk 0:02:37]}  Qd7 {[%clk 0:01:57]} 17. Qf3 {[%clk 0:02:24]}  Rfe8 {[%clk 0:01:28]} 18. Rad1 {[%clk 0:02:20]}  Bb4 {[%clk 0:01:26]} 19. f6 {[%clk 0:02:17]}  Rxe1+ {[%clk 0:01:09]} 20. Rxe1 {[%clk 0:02:11]}  g6 {[%clk 0:01:01]} 21. Rd1 {[%clk 0:01:42]}  Re8 {[%clk 0:00:58]} 22. Be3 {[%clk 0:01:32]}  Re6 {[%clk 0:00:52]} 23. Bg5 {[%clk 0:01:30]}  Qe8 {[%clk 0:00:48]} 24. g3 {[%clk 0:01:21]}  Bf8 {[%clk 0:00:39]} 25. Qf4 {[%clk 0:01:11]}  Bd6 {[%clk 0:00:37]} 26. Qh4 {[%clk 0:01:05]}  Bc5 {[%clk 0:00:28]} 27. Rd3 {[%clk 0:00:39]}  Re1+ {[%clk 0:00:24]} 28. Kg2 {[%clk 0:00:39]}  Qe5 {[%clk 0:00:22]} 29. Qf4 {[%clk 0:00:33]}  Qe8 {[%clk 0:00:20]} 30. Nd1 {[%clk 0:00:20]}  Re4 {[%clk 0:00:19]} 31. Qf3 {[%clk 0:00:20]}  Bf8 {[%clk 0:00:18]} 32. Bd2 {[%clk 0:00:16]}  Bc5 {[%clk 0:00:17]} 33. Be3 {[%clk 0:00:15]}  Bb4 {[%clk 0:00:16]} 34. Nc3 {[%clk 0:00:15]}  Re6 {[%clk 0:00:16]} 35. Bg5 {[%clk 0:00:15]}  Bf8 {[%clk 0:00:16]} 36. h4 {[%clk 0:00:13]}  h6 {[%clk 0:00:16]} 37. Bc1 {[%clk 0:00:13]}  Qd8 {[%clk 0:00:17]} 38. Nd1 {[%clk 0:00:13]}  Rxf6 {[%clk 0:00:17]} 39. Qe2 {[%clk 0:00:13]}  Bg7 {[%clk 0:00:17]} 40. Ne3 {[%clk 0:00:13]}  Re6 {[%clk 0:00:17]} 41. Qf3 {[%clk 0:00:14]}  Qe7 {[%clk 0:00:18]} 42. Ng4 {[%clk 0:00:13]}  h5 {[%clk 0:00:18]} 43. Ne3 {[%clk 0:00:12]}  Rf6 {[%clk 0:00:18]} 44. Qe2 {[%clk 0:00:13]}  Re6 {[%clk 0:00:18]} 45. Qd1 {[%clk 0:00:12]}  Re4 {[%clk 0:00:18]} 46. Bd2 {[%clk 0:00:12]}  Qe5 {[%clk 0:00:17]} 47. Bc3 {[%clk 0:00:12]}  d4 {[%clk 0:00:17]} 48. Nc4 {[%clk 0:00:13]}  Qd5 {[%clk 0:00:17]} 49. Bd2 {[%clk 0:00:12]}  Re1+ {[%clk 0:00:16]} 50. Qf3 {[%clk 0:00:13]}  Re4 {[%clk 0:00:15]} 51. Nb6 {[%clk 0:00:11]}  Qe6 {[%clk 0:00:15]} 52. Nc4 {[%clk 0:00:11]}  f5 {[%clk 0:00:14]} 53. Nxa5 {[%clk 0:00:10]}  Re2 {[%clk 0:00:14]} 54. Bf4 {[%clk 0:00:09]}  Rxb2 {[%clk 0:00:13]} 55. Nxb7 {[%clk 0:00:09]}  Kh7 {[%clk 0:00:10]} 56. Nc5 {[%clk 0:00:10]}  Qe1 {[%clk 0:00:10]} 57. Kh2 {[%clk 0:00:06]}  Rb1 {[%clk 0:00:10]} 58. Qg2 {[%clk 0:00:06]}  Qe7 {[%clk 0:00:05]} 59. Rd2 {[%clk 0:00:06]}  Qxc5 {[%clk 0:00:05]} 60. Re2 {[%clk 0:00:06]}  Qd5 {[%clk 0:00:05]} 61. Qxd5 {[%clk 0:00:06]}  cxd5 {[%clk 0:00:06]} 62. Re7 {[%clk 0:00:06]}  Kg8 {[%clk 0:00:05]} 63. Re8+ {[%clk 0:00:07]}  Kf7 {[%clk 0:00:05]} 64. Rd8 {[%clk 0:00:08]}  Rxb3 {[%clk 0:00:05]} 65. Rxd5 {[%clk 0:00:08]}  Rb4 {[%clk 0:00:06]} 66. Kg2 {[%clk 0:00:08]}  Rxa4 {[%clk 0:00:06]} 67. Kf3 {[%clk 0:00:08]}  Ke6 {[%clk 0:00:06]} 68. Rd8 {[%clk 0:00:08]}  Ra3+ {[%clk 0:00:07]} 69. Ke2 {[%clk 0:00:08]}  Ra2+ {[%clk 0:00:07]} 70. Kf3 {[%clk 0:00:08]}  Ra3+ {[%clk 0:00:07]} 71. Ke2 {[%clk 0:00:08]}  Bf6 {[%clk 0:00:08]} 72. Rb8 {[%clk 0:00:08]}  Kd5 {[%clk 0:00:08]} 73. Rb6 {[%clk 0:00:07]}  Ra2+ {[%clk 0:00:08]} 74. Kf3 {[%clk 0:00:07]}  Ra3+ {[%clk 0:00:08]} 75. Ke2 {[%clk 0:00:07]}  Be7 {[%clk 0:00:05]} 76. Rxg6 {[%clk 0:00:07]}  d3+ {[%clk 0:00:06]} 77. Kd1 {[%clk 0:00:07]}  Bb4 {[%clk 0:00:06]} 78. Bh6 {[%clk 0:00:04]}  Ra1+ {[%clk 0:00:06]} 0-1


[Site "https://www.chess.com"]

[Event "Titled Tuesday Blitz June 20 Early 2023"]
[White "Ismayil, Malak"]
[Black "Lohani, Sujana"]
[WhiteFideId "13412604"]
[BlackFideId "12311987"]
[WhiteElo "1868"]
[BlackElo "1718"]
[Result "1-0"]
[Round "1"]
[TimeControl "180+2"]
[Date "2023.06.20"]
[WhiteClock "0:00:46"]
[BlackClock "0:00:00"]
[Board "237"]

1. e4 {[%clk 0:02:55]}  c5 {[%clk 0:02:59]} 2. Nf3 {[%clk 0:02:55]}  Nc6 {[%clk 0:02:40]} 3. Bb5 {[%clk 0:02:54]}  g6 {[%clk 0:02:26]} 4. Bxc6 {[%clk 0:02:49]}  bxc6 {[%clk 0:02:26]} 5. d4 {[%clk 0:02:45]}  Bg7 {[%clk 0:02:20]} 6. O-O {[%clk 0:02:44]}  cxd4 {[%clk 0:02:17]} 7. Nxd4 {[%clk 0:02:45]}  Qb6 {[%clk 0:02:15]} 8. Nb3 {[%clk 0:02:43]}  Nf6 {[%clk 0:02:08]} 9. Nc3 {[%clk 0:02:42]}  O-O {[%clk 0:02:06]} 10. Be3 {[%clk 0:02:41]}  Qc7 {[%clk 0:02:05]} 11. h3 {[%clk 0:02:37]}  a5 {[%clk 0:02:04]} 12. Qd2 {[%clk 0:02:33]}  a4 {[%clk 0:02:03]} 13. Nd4 {[%clk 0:02:33]}  Ba6 {[%clk 0:01:59]} 14. Rfe1 {[%clk 0:02:33]}  Rfb8 {[%clk 0:01:56]} 15. Rab1 {[%clk 0:02:32]}  Qa5 {[%clk 0:01:04]} 16. Nf3 {[%clk 0:02:13]}  a3 {[%clk 0:01:03]} 17. b3 {[%clk 0:02:10]}  d6 {[%clk 0:00:58]} 18. Bg5 {[%clk 0:01:58]}  h6 {[%clk 0:00:20]} 19. Bxf6 {[%clk 0:01:53]}  Bxf6 {[%clk 0:00:20]} 20. Nd5 {[%clk 0:01:52]}  Qxd2 {[%clk 0:00:18]} 21. Nxf6+ {[%clk 0:01:52]}  Kg7 {[%clk 0:00:18]} 22. Nxd2 {[%clk 0:01:53]}  Kxf6 {[%clk 0:00:18]} 23. f4 {[%clk 0:01:50]}  Kg7 {[%clk 0:00:17]} 24. c4 {[%clk 0:01:50]}  e6 {[%clk 0:00:17]} 25. Rbc1 {[%clk 0:01:45]}  Rd8 {[%clk 0:00:17]} 26. Nb1 {[%clk 0:01:45]}  d5 {[%clk 0:00:18]} 27. cxd5 {[%clk 0:01:44]}  cxd5 {[%clk 0:00:18]} 28. exd5 {[%clk 0:01:43]}  Rxd5 {[%clk 0:00:17]} 29. Rcd1 {[%clk 0:01:41]}  Rad8 {[%clk 0:00:17]} 30. Nc3 {[%clk 0:01:37]}  Rd2 {[%clk 0:00:16]} 31. b4 {[%clk 0:01:29]}  R8d4 {[%clk 0:00:16]} 32. b5 {[%clk 0:01:29]}  Bb7 {[%clk 0:00:15]} 33. Rxd2 {[%clk 0:01:27]}  Rxd2 {[%clk 0:00:15]} 34. Re2 {[%clk 0:01:28]}  Rd4 {[%clk 0:00:14]} 35. Kf2 {[%clk 0:01:09]}  Rxf4+ {[%clk 0:00:13]} 36. Ke3 {[%clk 0:01:10]}  Rb4 {[%clk 0:00:12]} 37. Kd3 {[%clk 0:01:10]}  Rb2 {[%clk 0:00:12]} 38. Rxb2 {[%clk 0:00:55]}  axb2 {[%clk 0:00:01]} 39. g3 {[%clk 0:00:55]}  Kf6 {[%clk 0:00:01]} 40. Kc2 {[%clk 0:00:55]}  Ke5 {[%clk 0:00:01]} 41. Kxb2 {[%clk 0:00:55]}  Kd4 {[%clk 0:00:02]} 42. Kb3 {[%clk 0:00:53]}  e5 {[%clk 0:00:02]} 43. a4 {[%clk 0:00:49]}  Kc5 {[%clk 0:00:00]} 44. a5 {[%clk 0:00:46]} 1-0


[Site "https://www.chess.com"]

[Event "Titled Tuesday Blitz June 20 Early 2023"]
[White "Sharapov, Evgeny"]
[Black "Castillo Pena, Patricia Evarista"]
[WhiteFideId "14103133"]
[BlackFideId "6412106"]
[WhiteElo "2367"]
[BlackElo "1859"]
[Result "1-0"]
[Round "1"]
[TimeControl "180+2"]
[Date "2023.06.20"]
[WhiteClock "0:01:30"]
[BlackClock "0:00:02"]
[Board "239"]

1. e4 {[%clk 0:02:59]}  c5 {[%clk 0:02:58]} 2. Nf3 {[%clk 0:02:59]}  d6 {[%clk 0:02:58]} 3. d4 {[%clk 0:02:59]}  cxd4 {[%clk 0:02:59]} 4. Nxd4 {[%clk 0:02:59]}  Nf6 {[%clk 0:02:58]} 5. Nc3 {[%clk 0:03:00]}  a6 {[%clk 0:02:59]} 6. g3 {[%clk 0:03:00]}  e5 {[%clk 0:02:56]} 7. Nb3 {[%clk 0:02:59]}  Be7 {[%clk 0:02:56]} 8. Bg2 {[%clk 0:02:59]}  Be6 {[%clk 0:02:55]} 9. O-O {[%clk 0:02:59]}  Nbd7 {[%clk 0:02:54]} 10. a4 {[%clk 0:02:59]}  Qc7 {[%clk 0:02:48]} 11. Re1 {[%clk 0:02:58]}  O-O {[%clk 0:02:46]} 12. Nd2 {[%clk 0:02:58]}  Rfc8 {[%clk 0:02:39]} 13. Nf1 {[%clk 0:02:58]}  Rab8 {[%clk 0:02:31]} 14. a5 {[%clk 0:02:57]}  b5 {[%clk 0:02:19]} 15. axb6 {[%clk 0:02:57]}  Qxb6 {[%clk 0:02:17]} 16. Ne3 {[%clk 0:02:57]}  Rxc3 {[%clk 0:02:08]} 17. bxc3 {[%clk 0:02:57]}  Rc8 {[%clk 0:02:01]} 18. Bd2 {[%clk 0:02:46]}  Nc5 {[%clk 0:01:57]} 19. Nd5 {[%clk 0:02:43]}  Bxd5 {[%clk 0:01:48]} 20. exd5 {[%clk 0:02:43]}  a5 {[%clk 0:01:38]} 21. Qe2 {[%clk 0:02:41]}  a4 {[%clk 0:01:36]} 22. Reb1 {[%clk 0:02:41]}  Qc7 {[%clk 0:01:29]} 23. Be3 {[%clk 0:02:40]}  Nfe4 {[%clk 0:01:23]} 24. Ra3 {[%clk 0:02:28]}  f5 {[%clk 0:01:18]} 25. Qc4 {[%clk 0:02:19]}  Qd7 {[%clk 0:01:08]} 26. Qb5 {[%clk 0:02:05]}  Qxb5 {[%clk 0:00:56]} 27. Rxb5 {[%clk 0:02:03]}  Bf6 {[%clk 0:00:38]} 28. Rb4 {[%clk 0:01:49]}  Ng5 {[%clk 0:00:27]} 29. Rc4 {[%clk 0:01:42]}  f4 {[%clk 0:00:16]} 30. Bxc5 {[%clk 0:01:40]}  dxc5 {[%clk 0:00:15]} 31. Rcxa4 {[%clk 0:01:40]}  e4 {[%clk 0:00:13]} 32. Ra8 {[%clk 0:01:39]}  Rxa8 {[%clk 0:00:11]} 33. Rxa8+ {[%clk 0:01:39]}  Kf7 {[%clk 0:00:12]} 34. gxf4 {[%clk 0:01:39]}  Nf3+ {[%clk 0:00:12]} 35. Bxf3 {[%clk 0:01:39]}  exf3 {[%clk 0:00:12]} 36. Ra7+ {[%clk 0:01:36]}  Ke8 {[%clk 0:00:11]} 37. c4 {[%clk 0:01:36]}  Bd4 {[%clk 0:00:09]} 38. Kf1 {[%clk 0:01:34]}  h6 {[%clk 0:00:07]} 39. Ra3 {[%clk 0:01:32]}  g5 {[%clk 0:00:05]} 40. fxg5 {[%clk 0:01:30]}  hxg5 {[%clk 0:00:06]} 41. Rxf3 {[%clk 0:01:30]}  Kd7 {[%clk 0:00:02]} 42. Rf5 {[%clk 0:01:30]} 1-0


[Site "https://www.chess.com"]

[Event "Titled Tuesday Blitz June 20 Early 2023"]
[White "Vargas, Mauricio"]
[Black "Horak, Martin"]
[WhiteFideId "4404572"]
[BlackFideId "367095"]
[WhiteElo "1986"]
[BlackElo "2091"]
[Result "0-1"]
[Round "1"]
[TimeControl "180+2"]
[Date "2023.06.20"]
[WhiteClock "0:00:00"]
[BlackClock "0:00:12"]
[Board "240"]

1. e4 {[%clk 0:02:56]}  c5 {[%clk 0:02:56]} 2. Nc3 {[%clk 0:02:54]}  Nc6 {[%clk 0:02:56]} 3. f4 {[%clk 0:02:54]}  e6 {[%clk 0:02:55]} 4. Nf3 {[%clk 0:02:54]}  Nge7 {[%clk 0:02:56]} 5. d3 {[%clk 0:02:53]}  d5 {[%clk 0:02:55]} 6. e5 {[%clk 0:02:51]}  Nf5 {[%clk 0:02:53]} 7. g3 {[%clk 0:02:43]}  Be7 {[%clk 0:02:45]} 8. Bg2 {[%clk 0:02:43]}  Rb8 {[%clk 0:02:41]} 9. O-O {[%clk 0:02:42]}  h5 {[%clk 0:02:41]} 10. Ne2 {[%clk 0:02:38]}  b5 {[%clk 0:02:33]} 11. c3 {[%clk 0:02:37]}  b4 {[%clk 0:02:32]} 12. Bd2 {[%clk 0:02:36]}  a5 {[%clk 0:02:28]} 13. cxb4 {[%clk 0:02:15]}  axb4 {[%clk 0:02:14]} 14. a3 {[%clk 0:02:04]}  Ba6 {[%clk 0:01:55]} 15. axb4 {[%clk 0:02:01]}  Bxd3 {[%clk 0:01:54]} 16. Re1 {[%clk 0:01:31]}  cxb4 {[%clk 0:01:23]} 17. Qa4 {[%clk 0:01:24]}  Bb5 {[%clk 0:01:23]} 18. Qd1 {[%clk 0:01:06]}  h4 {[%clk 0:01:22]} 19. g4 {[%clk 0:01:04]}  h3 {[%clk 0:01:22]} 20. Bh1 {[%clk 0:00:58]}  Qb6+ {[%clk 0:01:18]} 21. Kf1 {[%clk 0:00:49]}  Nfd4 {[%clk 0:01:16]} 22. Nxd4 {[%clk 0:00:44]}  Nxd4 {[%clk 0:01:13]} 23. Be3 {[%clk 0:00:31]}  Nxe2 {[%clk 0:00:56]} 24. Bxb6 {[%clk 0:00:27]}  Nc3+ {[%clk 0:00:54]} 25. Kf2 {[%clk 0:00:18]}  Nxd1+ {[%clk 0:00:54]} 26. Rexd1 {[%clk 0:00:16]}  Rxb6 {[%clk 0:00:54]} 27. Ra8+ {[%clk 0:00:15]}  Bd8 {[%clk 0:00:54]} 28. Rc1 {[%clk 0:00:11]}  O-O {[%clk 0:00:39]} 29. Rcc8 {[%clk 0:00:09]}  Bh4+ {[%clk 0:00:33]} 30. Kf3 {[%clk 0:00:06]}  Rxc8 {[%clk 0:00:33]} 31. Rxc8+ {[%clk 0:00:07]}  Kh7 {[%clk 0:00:34]} 32. f5 {[%clk 0:00:05]}  Bd3 {[%clk 0:00:18]} 33. fxe6 {[%clk 0:00:05]}  fxe6 {[%clk 0:00:18]} 34. g5 {[%clk 0:00:05]}  Be4+ {[%clk 0:00:18]} 35. Kg4 {[%clk 0:00:05]}  Bxh1 {[%clk 0:00:16]} 36. Kxh4 {[%clk 0:00:04]}  Kg6 {[%clk 0:00:12]} 37. Kg4 {[%clk 0:00:00]}  Bg2 {[%clk 0:00:12]} 0-1


[Site "https://www.chess.com"]

[Event "Titled Tuesday Blitz June 20 Early 2023"]
[White "Nakamura, Hikaru"]
[Black "Vlassov, Nikolai"]
[WhiteFideId "2016192"]
[BlackFideId "4103360"]
[WhiteElo "2874"]
[BlackElo "2324"]
[Result "1-0"]
[Round "2"]
[TimeControl "180+2"]
[Date "2023.06.20"]
[WhiteClock "0:00:26"]
[BlackClock "0:00:00"]
[Board "2"]

1. Nf3 {[%clk 0:03:00]}  c5 {[%clk 0:02:59]} 2. e4 {[%clk 0:02:50]}  d6 {[%clk 0:02:59]} 3. d4 {[%clk 0:02:50]}  cxd4 {[%clk 0:02:59]} 4. c3 {[%clk 0:02:51]}  Nf6 {[%clk 0:02:58]} 5. Qxd4 {[%clk 0:02:50]}  Nc6 {[%clk 0:02:56]} 6. Bb5 {[%clk 0:02:50]}  Bd7 {[%clk 0:02:51]} 7. Qe3 {[%clk 0:02:50]}  g6 {[%clk 0:02:46]} 8. O-O {[%clk 0:02:50]}  Bg7 {[%clk 0:02:37]} 9. h3 {[%clk 0:02:50]}  O-O {[%clk 0:02:37]} 10. Rd1 {[%clk 0:02:50]}  Qc7 {[%clk 0:02:34]} 11. Be2 {[%clk 0:02:46]}  a6 {[%clk 0:02:16]} 12. c4 {[%clk 0:02:46]}  Na5 {[%clk 0:02:10]} 13. Na3 {[%clk 0:02:33]}  Rab8 {[%clk 0:02:10]} 14. Bd2 {[%clk 0:02:31]}  b5 {[%clk 0:02:08]} 15. cxb5 {[%clk 0:02:31]}  axb5 {[%clk 0:02:08]} 16. Rac1 {[%clk 0:02:31]}  Qd8 {[%clk 0:02:05]} 17. e5 {[%clk 0:02:26]}  Nd5 {[%clk 0:01:53]} 18. Qe4 {[%clk 0:02:17]}  Be6 {[%clk 0:01:53]} 19. Bxa5 {[%clk 0:02:06]}  Qxa5 {[%clk 0:01:48]} 20. Rxd5 {[%clk 0:02:06]}  Bxd5 {[%clk 0:01:46]} 21. Qxd5 {[%clk 0:02:07]}  dxe5 {[%clk 0:01:42]} 22. Nxe5 {[%clk 0:01:29]}  e6 {[%clk 0:01:19]} 23. Qe4 {[%clk 0:01:23]}  Qd2 {[%clk 0:01:03]} 24. Rb1 {[%clk 0:01:06]}  f5 {[%clk 0:00:49]} 25. Nf3 {[%clk 0:01:00]}  Qd7 {[%clk 0:00:29]} 26. Qe3 {[%clk 0:00:58]}  Rfe8 {[%clk 0:00:23]} 27. Rd1 {[%clk 0:00:53]}  Qc6 {[%clk 0:00:20]} 28. Ne5 {[%clk 0:00:48]}  Qc7 {[%clk 0:00:18]} 29. f4 {[%clk 0:00:48]}  Bf8 {[%clk 0:00:18]} 30. Kh1 {[%clk 0:00:46]}  b4 {[%clk 0:00:14]} 31. Nac4 {[%clk 0:00:46]}  Bc5 {[%clk 0:00:15]} 32. Qb3 {[%clk 0:00:45]}  Red8 {[%clk 0:00:14]} 33. Rf1 {[%clk 0:00:43]}  Rd4 {[%clk 0:00:13]} 34. Na5 {[%clk 0:00:37]}  Rb6 {[%clk 0:00:09]} 35. Bf3 {[%clk 0:00:28]}  Rxf4 {[%clk 0:00:08]} 36. Nd3 {[%clk 0:00:29]}  Rxf3 {[%clk 0:00:02]} 37. Rxf3 {[%clk 0:00:29]}  Bd4 {[%clk 0:00:00]} 38. Rf1 {[%clk 0:00:26]} 1-0


[Site "https://www.chess.com"]

[Event "Titled Tuesday Blitz June 20 Early 2023"]
[White "Seemann, Jakub"]
[Black "Nihal Sarin"]
[WhiteFideId "21874697"]
[BlackFideId "25092340"]
[WhiteElo "2364"]
[BlackElo "2689"]
[Result "0-1"]
[Round "2"]
[TimeControl "180+2"]
[Date "2023.06.20"]
[WhiteClock "0:00:07"]
[BlackClock "0:00:51"]
[Board "3"]

1. d4 {[%clk 0:02:58]}  Nf6 {[%clk 0:02:57]} 2. c4 {[%clk 0:02:58]}  e6 {[%clk 0:02:56]} 3. Nc3 {[%clk 0:02:56]}  Bb4 {[%clk 0:02:44]} 4. e3 {[%clk 0:02:55]}  O-O {[%clk 0:02:42]} 5. Bd2 {[%clk 0:02:49]}  d5 {[%clk 0:02:33]} 6. Nf3 {[%clk 0:02:46]}  b6 {[%clk 0:02:24]} 7. cxd5 {[%clk 0:02:46]}  exd5 {[%clk 0:02:04]} 8. Rc1 {[%clk 0:02:45]}  Bb7 {[%clk 0:01:50]} 9. Bd3 {[%clk 0:02:43]}  Re8 {[%clk 0:01:50]} 10. O-O {[%clk 0:02:39]}  Bf8 {[%clk 0:01:51]} 11. Ne5 {[%clk 0:02:34]}  c5 {[%clk 0:01:51]} 12. f4 {[%clk 0:02:25]}  Nc6 {[%clk 0:01:51]} 13. Be1 {[%clk 0:01:55]}  cxd4 {[%clk 0:01:50]} 14. Nxc6 {[%clk 0:01:53]}  Bxc6 {[%clk 0:01:51]} 15. exd4 {[%clk 0:01:41]}  Rc8 {[%clk 0:01:50]} 16. Bh4 {[%clk 0:01:37]}  Be7 {[%clk 0:01:50]} 17. Re1 {[%clk 0:01:21]}  h6 {[%clk 0:01:37]} 18. Re5 {[%clk 0:01:06]}  Nd7 {[%clk 0:01:08]} 19. Rxe7 {[%clk 0:01:04]}  Rxe7 {[%clk 0:01:09]} 20. Nxd5 {[%clk 0:00:26]}  Bxd5 {[%clk 0:01:04]} 21. Rxc8 {[%clk 0:00:27]}  Qxc8 {[%clk 0:01:05]} 22. Bxe7 {[%clk 0:00:27]}  Qe8 {[%clk 0:00:58]} 23. Qe2 {[%clk 0:00:25]}  Bxa2 {[%clk 0:00:54]} 24. Qe4 {[%clk 0:00:18]}  Nf8 {[%clk 0:00:51]} 25. d5 {[%clk 0:00:19]}  Bxd5 {[%clk 0:00:50]} 26. Qxd5 {[%clk 0:00:16]}  Qxe7 {[%clk 0:00:50]} 27. h3 {[%clk 0:00:14]}  Qe3+ {[%clk 0:00:50]} 28. Kh1 {[%clk 0:00:10]}  Qc1+ {[%clk 0:00:50]} 29. Kh2 {[%clk 0:00:07]}  Qxf4+ {[%clk 0:00:51]} 0-1


[Site "https://www.chess.com"]

[Event "Titled Tuesday Blitz June 20 Early 2023"]
[White "Sochacki, Christophe"]
[Black "Martinez Alcantara, Jose Eduardo"]
[WhiteFideId "662569"]
[BlackFideId "3805662"]
[WhiteElo "2501"]
[BlackElo "2711"]
[Result "0-1"]
[Round "2"]
[TimeControl "180+2"]
[Date "2023.06.20"]
[WhiteClock "0:00:03"]
[BlackClock "0:02:05"]
[Board "5"]

1. d4 {[%clk 0:02:59]}  Nf6 {[%clk 0:02:59]} 2. Bg5 {[%clk 0:02:59]}  Ne4 {[%clk 0:02:57]} 3. Bf4 {[%clk 0:02:58]}  d5 {[%clk 0:02:58]} 4. e3 {[%clk 0:02:56]}  c5 {[%clk 0:02:59]} 5. Bd3 {[%clk 0:02:56]}  Nf6 {[%clk 0:02:58]} 6. dxc5 {[%clk 0:02:28]}  Nc6 {[%clk 0:02:55]} 7. Bb5 {[%clk 0:02:13]}  g6 {[%clk 0:02:36]} 8. c3 {[%clk 0:01:58]}  Bg7 {[%clk 0:02:36]} 9. Ne2 {[%clk 0:01:37]}  O-O {[%clk 0:02:35]} 10. Bxc6 {[%clk 0:01:38]}  bxc6 {[%clk 0:02:35]} 11. Nd2 {[%clk 0:01:33]}  Nd7 {[%clk 0:02:29]} 12. b4 {[%clk 0:01:31]}  Ba6 {[%clk 0:02:28]} 13. Bg3 {[%clk 0:01:20]}  Bxe2 {[%clk 0:02:22]} 14. Kxe2 {[%clk 0:01:00]}  Bxc3 {[%clk 0:02:22]} 15. Rb1 {[%clk 0:01:00]}  a5 {[%clk 0:02:22]} 16. a3 {[%clk 0:00:59]}  axb4 {[%clk 0:02:22]} 17. h4 {[%clk 0:00:45]}  Rxa3 {[%clk 0:02:21]} 18. Nb3 {[%clk 0:00:42]}  Qa8 {[%clk 0:02:15]} 19. h5 {[%clk 0:00:38]}  Qa6+ {[%clk 0:02:15]} 20. Kf3 {[%clk 0:00:39]}  Qc4 {[%clk 0:02:12]} 21. Rh4 {[%clk 0:00:31]}  Ne5+ {[%clk 0:02:04]} 22. Bxe5 {[%clk 0:00:30]}  Qxh4 {[%clk 0:02:04]} 23. Bxc3 {[%clk 0:00:18]}  bxc3 {[%clk 0:02:05]} 24. Nd4 {[%clk 0:00:15]}  Qxh5+ {[%clk 0:02:05]} 25. g4 {[%clk 0:00:15]}  Qh3+ {[%clk 0:02:05]} 26. Kf4 {[%clk 0:00:03]}  f6 {[%clk 0:02:05]} 0-1


[Site "https://www.chess.com"]